bitfinex/quotes_ETHUSD_20230110
["timestamp","ask_amount","ask_price","bid_price","bid_amount"]
[1673356265249,1.12728002,1328.4,1328.2,0.05]
[1673356266350,1.12728002,1328.4,1328.2,7.57895]
[1673356266568,1.12728002,1328.4,1328.2,0.066]
[1673356266734,1.12728002,1328.4,1328.1,22.05021939]
[1673356266951,1.12728002,1328.4,1328.2,4.36805118]
[1673356267155,1.12728002,1328.4,1328.2,2.5]
[1673356267402,1.12728002,1328.4,1328.1,38.61712074]
[1673356267613,1.12728002,1328.4,1328.2,1.86805864]
[1673356268192,1.12728002,1328.4,1328.2,4.36805864]
[1673356268402,1.12728002,1328.4,1328.2,7.10061935]
[1673356268645,1.12728002,1328.4,1328.2,7.16661935]
[1673356270033,1.12728002,1328.4,1328.2,4.36451794]
[1673356270357,1.12728002,1328.4,1328.2,4.29851794]
[1673356272343,2.81404191,1328.4,1328.2,4.29851794]
[1673356276151,2.81404191,1328.4,1328.2,7.10061935]
[1673356276485,2.81404191,1328.4,1328.2,8.29018733]
[1673356278955,2.81404191,1328.4,1328.3,1.8680445]
[1673356279816,1.12728002,1328.4,1328.3,1.8680445]
[1673356280542,2.81404191,1328.4,1328.3,1.8680445]
[1673356282371,1.68676189,1328.4,1328.3,1.8680445]
[1673356282592,1.68676189,1328.4,1328.2,26.57830939]
[1673356282750,1.68676189,1328.4,1328.2,23.77620798]
[1673356282751,1.12914828,1328.3,1328.2,23.77620798]
[1673356283112,1.12914828,1328.3,1328.2,9.46303311]
[1673356283113,1.12919407,1328.3,1328.2,9.46303311]
[1673356283285,1.12919407,1328.3,1328.2,1.93415311]
[1673356283481,1.12919407,1328.3,1328.2,9.39713311]
[1673356283703,1.12919407,1328.3,1328.2,9.46313311]
[1673356284236,1.07919407,1328.3,1328.2,9.46313311]
[1673356285569,4.00703644,1328.4,1328.3,1.07919407]
[1673356285725,3.94106188,1328.4,1328.3,1.07919407]
[1673356287653,1.68676189,1328.4,1328.3,1.07919407]
[1673356287865,1.68676189,1328.4,1328.3,10.47566114]
[1673356288082,1.68676189,1328.4,1328.3,8.67360407]
[1673356288289,1.68676189,1328.4,1328.3,3.01325742]
[1673356288512,1.68676189,1328.4,1328.3,2.94725742]
[1673356289617,11.81523644,1328.5,1328.3,2.94725742]
[1673356289892,11.81523644,1328.5,1328.3,1.07919407]
[1673356290044,4.00703644,1328.5,1328.3,1.07919407]
[1673356290419,4.00703644,1328.6,1328.4,1.706]
[1673356290719,1.68676189,1328.6,1328.4,24.289]
[1673356290935,3.94106188,1328.6,1328.4,24.355]
[1673356291085,1.68676189,1328.6,1328.4,28.46176741]
[1673356291297,1.68676189,1328.6,1328.5,1.8678065]
[1673356291617,1.68676189,1328.6,1328.5,16.9223665]
[1673356291855,1.68676189,1328.6,1328.5,16.9883665]
[1673356292242,13.42303644,1328.7,1328.5,15.12056]
[1673356292479,11.16873645,1328.7,1328.5,7.59328]
[1673356292698,13.42303644,1328.7,1328.5,7.59328]
[1673356293249,5.00703644,1328.7,1328.5,7.59328]
[1673356293419,5.00703644,1328.7,1328.5,15.12056]
[1673356293613,5.00703644,1328.7,1328.5,7.59328]
[1673356294186,1.12796357,1328.6,1328.5,7.59328]
[1673356294875,1.12796357,1328.6,1328.5,22.64784]
[1673356295294,3.88070002,1328.7,1328.5,22.64784]
[1673356295660,1.12796357,1328.6,1328.5,22.64784]
[1673356296338,1.12796357,1328.6,1328.5,15.12056]
[1673356296819,3.81472546,1328.7,1328.5,17.96663174]
[1673356297016,3.81472546,1328.7,1328.5,25.49391174]
[1673356297225,3.81472546,1328.7,1328.5,17.96663174]
[1673356297622,1.12796357,1328.6,1328.5,17.96663174]
[1673356298084,1.12796357,1328.6,1328.5,25.49391174]
[1673356298242,3.81472546,1328.7,1328.5,25.49391174]
[1673356299238,3.81472546,1328.7,1328.5,17.96663174]
[1673356300497,2.12796357,1328.7,1328.5,25.49391174]
[1673356300706,2.12796357,1328.7,1328.5,17.96663174]
[1673356300886,2.12796357,1328.7,1328.5,15.12056]
[1673356301337,2.12796357,1328.7,1328.5,22.64784]
[1673356301920,2.12796357,1328.7,1328.5,15.12056]
[1673356304033,1.12796357,1328.6,1328.5,0.066]
[1673356304291,1.12796357,1328.6,1328.4,3.0]
[1673356304467,1.12796357,1328.6,1328.3,16.20147407]
[1673356304678,1.12796357,1328.6,1328.3,19.00322888]
[1673356304925,1.12796357,1328.6,1328.3,16.20147407]
[1673356305660,1.12796357,1328.6,1328.3,19.00322888]
[1673356305866,1.12796357,1328.6,1328.3,16.20147407]
[1673356306186,1.12796357,1328.6,1328.3,23.73015407]
[1673356306397,1.12796357,1328.6,1328.3,26.53190888]
[1673356306923,1.12796357,1328.6,1328.3,19.00349888]
[1673356307139,1.12796357,1328.6,1328.3,16.20174407]
[1673356307302,2.81472546,1328.6,1328.3,16.20174407]
[1673356307716,2.81472546,1328.6,1328.3,1.14519407]
[1673356307717,1.12796357,1328.5,1328.3,1.14519407]
[1673356307921,2.81472546,1328.5,1328.3,1.07919407]
[1673356308633,12.84215546,1328.5,1328.3,1.07919407]
[1673356308762,10.40813002,1328.5,1328.3,1.07919407]
[1673356308970,1.12796357,1328.4,1328.3,1.07919407]
[1673356309760,5.38070002,1328.5,1328.3,1.07919407]
[1673356310337,2.88070002,1328.5,1328.3,1.07919407]
[1673356310685,10.34204546,1328.5,1328.3,1.07919407]
[1673356310906,10.40802002,1328.5,1328.3,1.07919407]
[1673356311823,1.12796357,1328.4,1328.3,1.07919407]
[1673356313072,10.40802002,1328.5,1328.3,1.07919407]
[1673356315005,2.88070002,1328.5,1328.3,1.07919407]
[1673356315218,2.81472546,1328.5,1328.3,1.07919407]
[1673356315416,5.31472546,1328.5,1328.3,1.07919407]
[1673356315590,5.38070002,1328.5,1328.3,1.07919407]
[1673356315800,1.12796357,1328.4,1328.3,1.07919407]
[1673356316263,5.38070002,1328.5,1328.3,1.07919407]
[1673356316642,1.12796357,1328.4,1328.3,1.07919407]
[1673356318117,16.18366357,1328.4,1328.3,1.07919407]
[1673356318327,16.24963813,1328.4,1328.3,1.07919407]
[1673356319370,17.93640002,1328.4,1328.3,1.0765801]
[1673356320441,16.24963813,1328.4,1328.3,1.0765801]
[1673356320688,17.93640002,1328.4,1328.3,1.0765801]
[1673356320855,16.24963813,1328.4,1328.3,1.0765801]
[1673356321065,17.93640002,1328.4,1328.3,1.0765801]
[1673356321281,16.24963813,1328.4,1328.3,1.0765801]
[1673356321589,8.72178813,1328.4,1328.3,1.0765801]
[1673356336005,16.24963813,1328.4,1328.3,1.0765801]
[1673356336986,8.72178813,1328.4,1328.3,1.0765801]
[1673356337365,16.24963813,1328.4,1328.3,1.0765801]
[1673356338449,17.93640002,1328.4,1328.3,1.0765801]
[1673356340376,16.80843645,1328.4,1328.3,1.0765801]
[1673356342147,19.06273644,1328.4,1328.3,1.0765801]
[1673356342572,17.93620122,1328.4,1328.3,1.0765801]
[1673356343218,10.40835122,1328.4,1328.3,1.0765801]
[1673356344219,9.28058645,1328.4,1328.3,1.0765801]
[1673356344429,12.65845927,1328.4,1328.3,1.07326193]
[1673356344792,9.84812455,1328.4,1328.3,1.07326193]
[1673356345007,12.65845927,1328.4,1328.3,1.07326193]
[1673356345831,11.54041177,1328.4,1328.3,1.07326193]
[1673356346484,9.84812455,1328.4,1328.3,1.07326193]
[1673356348156,29.59381655,1328.4,1328.3,1.07326193]
[1673356348372,37.9302335,1328.4,1328.3,1.07326193]
[1673356349220,40.9302335,1328.4,1328.3,1.07326193]
[1673356353424,37.55783184,1328.4,1328.3,1.07326193]
[1673356357078,40.3760413,1328.4,1328.3,1.07326193]
[1673356360569,36.47119466,1328.4,1328.3,1.07326193]
[1673356360793,40.3760413,1328.4,1328.3,1.07326193]
[1673356365301,40.3760413,1328.4,1328.3,1.07050468]
[1673356365728,37.55783184,1328.4,1328.3,1.07050468]
[1673356366033,40.9302335,1328.4,1328.3,4.68e-06]
[1673356366223,59.0057335,1328.4,1328.3,4.68e-06]
[1673356369384,55.10088686,1328.4,1328.3,4.68e-06]
[1673356369592,42.3127862,1328.4,1328.3,4.68e-06]
[1673356369873,44.33640676,1328.4,1328.3,4.68e-06]
[1673356370291,44.33354627,1328.4,1328.3,4.68e-06]
[1673356370754,41.51639527,1328.4,1328.3,4.68e-06]
[1673356370934,44.33354627,1328.4,1328.3,4.68e-06]
[1673356371147,47.33354627,1328.4,1328.3,4.68e-06]
[1673356372188,54.86139627,1328.4,1328.3,4.68e-06]
[1673356372403,47.33354627,1328.4,1328.3,4.68e-06]
[1673356372857,54.86139627,1328.4,1328.3,4.68e-06]
[1673356373613,47.33354627,1328.4,1328.3,4.68e-06]
[1673356373919,54.86139627,1328.4,1328.3,4.68e-06]
[1673356376698,55.09139627,1328.4,1328.3,4.68e-06]
[1673356377805,55.09139627,1328.4,1328.0,3.91441375]
[1673356377960,2.8183665,1328.3,1328.0,0.04516071]
[1673356378165,10.3469165,1328.3,1328.0,0.04516071]
[1673356378484,1.1273466,1328.2,1328.0,0.04516071]
[1673356378955,1.1273466,1328.2,1328.0,1.73716071]
[1673356380397,1.1273466,1328.2,1328.0,4.76747371]
[1673356380623,8.6563666,1328.2,1328.0,4.76747371]
[1673356380835,8.72234116,1328.2,1328.0,4.76747371]
[1673356381050,1.19332116,1328.2,1328.0,4.76747371]
[1673356381392,1.1273466,1328.2,1328.0,4.76747371]
[1673356384480,26.59654502,1328.3,1328.0,4.76747371]
[1673356384742,1.12801109,1328.2,1328.0,4.76747371]
[1673356384957,2.25609165,1328.2,1328.0,4.76747371]
[1673356385274,2.25609905,1328.2,1328.0,4.76747371]
[1673356385902,1.12801109,1328.2,1328.0,4.76747371]
[1673356386513,2.25606252,1328.2,1328.0,4.76747371]
[1673356386687,1.12801109,1328.2,1328.0,4.76747371]
[1673356387356,2.25627792,1328.2,1328.0,4.76747371]
[1673356387544,9.78526533,1328.2,1328.0,4.76747371]
[1673356387754,9.85123989,1328.2,1328.0,4.76747371]
[1673356389480,9.85120108,1328.2,1328.0,4.76747371]
[1673356389681,9.85120081,1328.2,1328.0,4.76747371]
[1673356389894,8.72296565,1328.2,1328.0,4.76747371]
[1673356390105,9.85120051,1328.2,1328.0,4.76747371]
[1673356390263,8.72296565,1328.2,1328.0,4.76747371]
[1673356390477,9.85120252,1328.2,1328.0,4.76747371]
[1673356390897,11.54222242,1328.2,1328.0,4.76370517]
[1673356391369,9.85120252,1328.2,1328.0,4.76370517]
[1673356391748,11.54222242,1328.2,1328.0,4.76370517]
[1673356392188,9.85120252,1328.2,1328.0,4.76370517]
[1673356392841,11.54222242,1328.2,1328.0,4.76370517]
[1673356394207,4.01324242,1328.2,1328.0,4.76370517]
[1673356394400,19.00554786,1328.2,1328.0,4.76370517]
[1673356394592,1.12835483,1328.1,1328.0,1.73339217]
[1673356394798,17.94328555,1328.2,1328.0,1.73339217]
[1673356395015,1.12835389,1328.1,1328.0,1.73339217]
[1673356395243,20.19690611,1328.2,1328.0,1.73339217]
[1673356395650,1.12836034,1328.1,1328.0,1.73339217]
[1673356395886,20.19690611,1328.2,1328.0,1.73339217]
[1673356396266,1.1283858,1328.1,1328.0,1.73339217]
[1673356396626,1.12838581,1328.1,1328.0,1.73339217]
[1673356396793,1.12839846,1328.1,1328.0,1.73339217]
[1673356397149,1.12839628,1328.1,1328.0,1.73339217]
[1673356397325,1.12839628,1328.1,1328.0,0.04139217]
[1673356397326,1.12839874,1328.1,1328.0,0.04139217]
[1673356397531,20.19703611,1328.2,1328.0,0.04139217]
[1673356397959,5.13862611,1328.2,1328.0,0.04139217]
[1673356398170,1.12838387,1328.1,1328.0,0.04139217]
[1673356398401,1.12840719,1328.1,1328.0,0.04139217]
[1673356398633,2.88500555,1328.2,1328.0,0.04139217]
[1673356398844,2.81903099,1328.2,1328.0,0.04139217]
[1673356399178,3.9473946,1328.2,1328.0,0.04139217]
[1673356399508,1.12837336,1328.1,1328.0,0.04139217]
[1673356399669,1.12837365,1328.1,1328.0,1.90979669]
[1673356400010,2.88500555,1328.2,1328.0,2.97832023]
[1673356400227,1.12838369,1328.1,1328.0,1.10991571]
[1673356400440,2.88500555,1328.2,1328.0,2.97833182]
[1673356400596,1.12840925,1328.1,1328.0,1.10991571]
[1673356400802,2.88500555,1328.2,1328.0,2.97831999]
[1673356401069,1.12839978,1328.1,1328.0,1.10991571]
[1673356401299,2.88500555,1328.2,1328.0,2.97831397]
[1673356401440,2.81903099,1328.2,1328.1,1.12102876]
[1673356406070,3.9474354,1328.2,1328.1,1.12102876]
[1673356406699,2.81903099,1328.2,1328.1,1.12102876]
[1673356406915,2.82103099,1328.2,1328.1,1.12102876]
[1673356407146,10.34801099,1328.2,1328.1,1.12102876]
[1673356407364,10.41398555,1328.2,1328.1,1.12102876]
[1673356408585,11.54267805,1328.2,1328.1,1.12102876]
[1673356408850,10.41398555,1328.2,1328.1,1.12102876]
[1673356409021,12.66760611,1328.2,1328.1,1.12102876]
[1673356409229,5.13862611,1328.2,1328.1,1.12102876]
[1673356409477,2.88500555,1328.2,1328.1,1.12102876]
[1673356409752,2.81903099,1328.2,1328.1,1.12102876]
[1673356410382,12.60163155,1328.2,1328.1,1.12102876]
[1673356410626,12.66760611,1328.2,1328.1,1.12102876]
[1673356410740,10.97658621,1328.2,1328.1,1.12102876]
[1673356411205,3.44760621,1328.2,1328.1,1.12102876]
[1673356411479,3.38163165,1328.2,1328.1,1.12102876]
[1673356411921,5.07525082,1328.2,1328.1,1.12102876]
[1673356412141,3.44760621,1328.2,1328.1,1.12102876]
[1673356412319,3.38163165,1328.2,1328.1,1.12102876]
[1673356413336,10.91061165,1328.2,1328.1,1.12102876]
[1673356413628,10.97658621,1328.2,1328.1,1.12102876]
[1673356413839,18.50556621,1328.2,1328.1,1.12102876]
[1673356414161,21.32271721,1328.2,1328.1,1.12102876]
[1673356414737,18.50556621,1328.2,1328.1,1.12102876]
[1673356414979,21.32271721,1328.2,1328.1,1.12102876]
[1673356415193,26.59807665,1328.2,1328.1,1.12102876]
[1673356416019,19.06909665,1328.2,1328.1,1.12102876]
[1673356416247,26.59807665,1328.2,1328.1,1.12102876]
[1673356416573,28.855727,1328.2,1328.1,1.12102876]
[1673356416790,26.59807665,1328.2,1328.1,1.12102876]
[1673356417383,28.85570519,1328.2,1328.1,1.12102876]
[1673356418027,21.32672519,1328.2,1328.1,1.12102876]
[1673356418465,18.50957419,1328.2,1328.1,1.12102876]
[1673356419067,21.32672519,1328.2,1328.1,1.12102876]
[1673356421008,10.97825988,1328.2,1328.1,1.12102876]
[1673356421228,5.14206408,1328.2,1328.1,1.12102876]
[1673356422258,2.88443554,1328.2,1328.1,1.12102876]
[1673356422576,2.81846098,1328.2,1328.1,1.12102876]
[1673356423192,3.94694399,1328.2,1328.1,1.12102876]
[1673356424594,1.12567678,1328.2,1328.1,20.20721503]
[1673356424830,1.12567678,1328.2,1328.1,32.83231503]
[1673356425018,1.12567678,1328.2,1328.1,35.63483563]
[1673356426613,1.12567678,1328.2,1328.1,28.10528563]
[1673356426805,1.12567678,1328.2,1328.1,21.4351881]
[1673356427665,1.12567678,1328.2,1328.1,28.9647381]
[1673356430237,1.12567678,1328.2,1328.1,31.7672587]
[1673356430449,1.12567678,1328.2,1328.1,28.9647381]
[1673356430911,1.12567678,1328.2,1328.1,31.7672587]
[1673356431124,1.12567678,1328.2,1328.1,28.9647381]
[1673356431304,1.12567678,1328.2,1328.1,21.4351881]
[1673356433657,1.12567678,1328.2,1328.1,13.9056381]
[1673356433825,1.12567678,1328.2,1328.1,4.50783885]
[1673356434044,1.12567678,1328.2,1328.1,4.44183885]
[1673356434683,1.12567678,1328.2,1328.1,11.97138885]
[1673356435015,1.12567678,1328.2,1328.1,12.03738885]
[1673356435625,1.12567678,1328.2,1328.1,4.50783885]
[1673356436014,1.12567678,1328.2,1328.1,2.81302876]
[1673356438065,1.12567678,1328.2,1328.1,10.34257876]
[1673356438220,1.12567678,1328.2,1328.1,10.40857876]
[1673356439542,1.12567678,1328.2,1328.1,8.71657876]
[1673356440111,1.12567678,1328.2,1328.1,1.18702876]
[1673356440326,1.12567678,1328.2,1328.1,1.12102876]
[1673356444425,1.12767678,1328.2,1328.1,1.12102876]
[1673356444635,1.12567678,1328.2,1328.1,1.12102876]
[1673356449621,1.12567678,1328.2,1328.1,1.11811989]
[1673356449845,2.25312932,1328.2,1328.1,1.11811989]
[1673356450058,1.12567678,1328.2,1328.1,1.11811989]
[1673356450377,2.25312916,1328.2,1328.1,1.11811989]
[1673356451585,9.78210916,1328.2,1328.1,1.11811989]
[1673356451841,17.37706372,1328.2,1328.1,1.11811989]
[1673356452442,9.84808372,1328.2,1328.1,1.11811989]
[1673356453094,1.19165134,1328.2,1328.1,1.11811989]
[1673356453306,1.12567678,1328.2,1328.1,1.11811989]
[1673356453697,9.78210916,1328.2,1328.1,1.11811989]
[1673356453935,9.84808372,1328.2,1328.1,1.11811989]
[1673356454320,2.31910372,1328.2,1328.1,1.11811989]
[1673356454529,2.25312916,1328.2,1328.1,1.11811989]
[1673356458803,3.94591336,1328.2,1328.1,1.11811989]
[1673356464004,2.81846098,1328.2,1328.1,1.11811989]
[1673356464790,3.94699167,1328.2,1328.1,1.11811989]
[1673356467310,2.25417816,1328.2,1328.1,2.98641497]
[1673356467630,1.12567678,1328.2,1328.1,2.98641497]
[1673356468057,3.9469852,1328.2,1328.1,1.11811989]
[1673356468208,2.25427778,1328.2,1328.1,1.11811989]
[1673356468418,3.94707217,1328.2,1328.1,1.11811989]
[1673356468675,2.25428797,1328.2,1328.1,1.11811989]
[1673356468893,2.25428797,1328.2,1328.1,2.9864198]
[1673356468894,2.25426699,1328.2,1328.1,2.9864198]
[1673356469084,1.12567678,1328.2,1328.1,2.9864198]
[1673356469289,1.12567678,1328.2,1328.1,1.11811989]
[1673356469499,1.12567678,1328.2,1328.1,2.98642415]
[1673356469500,2.25430227,1328.2,1328.1,2.98642415]
[1673356469680,1.12567678,1328.2,1328.1,2.98642415]
[1673356469889,2.25427675,1328.2,1328.1,2.98642415]
[1673356470100,1.12567678,1328.2,1328.1,2.98642415]
[1673356470354,2.25437288,1328.2,1328.1,2.98642415]
[1673356470572,2.25437297,1328.2,1328.1,2.98642415]
[1673356470785,2.25437306,1328.2,1328.1,2.98642415]
[1673356471009,4.01654141,1328.3,1328.1,1.86830426]
[1673356471172,1.12871777,1328.2,1328.1,1.86830426]
[1673356471380,1.12872083,1328.2,1328.1,1.86830426]
[1673356471573,4.01654141,1328.3,1328.1,1.86830426]
[1673356471935,3.95056685,1328.3,1328.1,1.86830426]
[1673356472152,1.12873332,1328.2,1328.1,1.86830426]
[1673356472361,1.12884509,1328.2,1328.1,1.86830426]
[1673356472665,1.69327472,1328.2,1328.1,1.86830426]
[1673356472883,1.69326655,1328.2,1328.1,1.86830426]
[1673356473095,1.12886926,1328.2,1328.1,1.86830426]
[1673356473251,1.69330244,1328.2,1328.1,1.86830426]
[1673356473463,1.12886932,1328.2,1328.1,1.86830426]
[1673356473710,1.12886937,1328.2,1328.1,1.86830426]
[1673356473931,2.3236031,1328.3,1328.1,1.86830426]
[1673356474251,3.95091058,1328.3,1328.1,9.39785426]
[1673356474559,3.95091058,1328.3,1328.1,7.59555]
[1673356474777,1.12884351,1328.2,1328.1,7.59555]
[1673356474948,1.69328204,1328.3,1328.1,12.46604581]
[1673356474949,2.82202849,1328.3,1328.1,12.46604581]
[1673356475293,2.82202849,1328.3,1328.1,7.59555]
[1673356475294,1.12876026,1328.2,1328.1,7.59555]
[1673356475452,1.69328204,1328.3,1328.1,9.4637694]
[1673356475830,1.69328204,1328.3,1328.1,7.59555]
[1673356476654,1.12875292,1328.2,1328.1,7.59555]
[1673356476842,1.12874434,1328.2,1328.1,9.46377943]
[1673356477035,1.69328204,1328.3,1328.1,9.46377943]
[1673356477243,1.69328204,1328.3,1328.1,7.59555]
[1673356477694,2.25744776,1328.2,1328.1,7.59555]
[1673356477951,2.25744776,1328.2,1328.1,9.46379317]
[1673356477952,1.12872387,1328.2,1328.1,9.46379317]
[1673356478166,2.25744865,1328.2,1328.1,9.46379317]
[1673356478330,2.25746522,1328.2,1328.1,1.93424317]
[1673356478540,1.12872387,1328.2,1328.1,1.86824317]
[1673356478754,2.25748408,1328.2,1328.1,1.86824317]
[1673356478948,1.12872387,1328.2,1328.1,1.86824317]
[1673356479159,2.25751242,1328.2,1328.1,1.86824317]
[1673356479419,2.25750417,1328.2,1328.1,1.86824317]
[1673356479736,1.12872387,1328.2,1328.1,9.39779317]
[1673356479927,2.2574826,1328.2,1328.1,9.46379317]
[1673356480107,1.12872387,1328.2,1328.1,9.46379317]
[1673356480314,2.25747686,1328.2,1328.1,16.99334317]
[1673356480642,2.25747768,1328.2,1328.1,19.73154904]
[1673356480870,1.12872387,1328.2,1328.1,20.85511702]
[1673356481048,1.12872387,1328.2,1328.1,19.73154904]
[1673356483189,1.12872387,1328.2,1328.1,27.26109904]
[1673356483530,1.12872387,1328.2,1328.1,28.38466702]
[1673356485703,1.12872387,1328.2,1328.1,27.26109904]
[1673356485916,1.12872387,1328.2,1328.1,24.52289317]
[1673356486142,2.25742283,1328.2,1328.1,24.52289317]
[1673356486333,2.25730241,1328.2,1328.1,24.52289317]
[1673356486513,1.12872387,1328.2,1328.1,24.52289317]
[1673356486935,2.2572909,1328.2,1328.1,24.52289317]
[1673356487197,2.25729096,1328.2,1328.1,24.52289317]
[1673356487359,1.12872387,1328.2,1328.1,24.52289317]
[1673356487572,2.25729148,1328.2,1328.1,24.52289317]
[1673356487799,1.12872387,1328.2,1328.1,24.52289317]
[1673356488005,2.25729068,1328.2,1328.1,24.52289317]
[1673356488196,1.12872387,1328.2,1328.1,24.52289317]
[1673356488637,2.25729782,1328.2,1328.1,24.52289317]
[1673356488849,1.12872387,1328.2,1328.1,24.52289317]
[1673356489057,2.25728685,1328.2,1328.1,24.52289317]
[1673356489399,1.12872387,1328.2,1328.1,28.12489756]
[1673356489780,2.25729453,1328.2,1328.1,28.12489756]
[1673356489988,1.12872387,1328.2,1328.1,28.12489756]
[1673356491299,1.12872387,1328.2,1328.1,20.59534756]
[1673356491505,1.12872387,1328.2,1328.1,16.99334317]
[1673356494669,2.25724196,1328.2,1328.1,16.99334317]
[1673356494838,1.12872387,1328.2,1328.1,16.99334317]
[1673356495274,1.12872387,1328.2,1328.1,9.46379317]
[1673356495521,2.25728637,1328.2,1328.1,9.46379317]
[1673356495723,1.12872387,1328.2,1328.1,9.46379317]
[1673356496459,2.25729927,1328.2,1328.1,9.46379317]
[1673356496618,1.12872387,1328.2,1328.1,9.46379317]
[1673356497153,2.25735618,1328.2,1328.1,9.46379317]
[1673356497351,1.12872387,1328.2,1328.1,9.46379317]
[1673356497833,2.25735674,1328.2,1328.1,9.46379317]
[1673356497996,1.12872387,1328.2,1328.1,9.46379317]
[1673356498624,2.25735691,1328.2,1328.1,9.46379317]
[1673356498985,2.25738295,1328.2,1328.1,9.46379317]
[1673356499297,2.25742401,1328.2,1328.1,9.46379317]
[1673356499456,1.12872387,1328.2,1328.1,9.46379317]
[1673356499664,2.257424,1328.2,1328.1,9.46379317]
[1673356499876,2.25742403,1328.2,1328.1,9.46379317]
[1673356500178,2.25741901,1328.2,1328.1,9.46379317]
[1673356500341,1.12872387,1328.2,1328.1,9.46379317]
[1673356500821,2.25743753,1328.2,1328.1,9.46379317]
[1673356501038,3.95069746,1328.2,1328.1,1.93424317]
[1673356501272,2.82187938,1328.2,1328.1,1.86824317]
[1673356501481,2.25749422,1328.2,1328.1,1.86824317]
[1673356501812,2.25749416,1328.2,1328.1,1.86824317]
[1673356502026,1.12872387,1328.2,1328.1,1.86824317]
[1673356502608,1.12872387,1328.2,1328.1,9.39779317]
[1673356502818,2.25747091,1328.2,1328.1,9.46379317]
[1673356503023,1.12872387,1328.2,1328.1,9.46379317]
[1673356503238,2.25752916,1328.2,1328.1,9.46379317]
[1673356503452,1.12872387,1328.2,1328.1,9.46379317]
[1673356503693,2.25752912,1328.2,1328.1,9.46379317]
[1673356503915,2.25751901,1328.2,1328.1,9.46379317]
[1673356504089,1.12872387,1328.2,1328.1,9.46379317]
[1673356504299,2.2575191,1328.2,1328.1,9.46379317]
[1673356504513,1.12872387,1328.2,1328.1,9.46379317]
[1673356504859,1.13072387,1328.2,1328.1,9.46179317]
[1673356505212,1.12872387,1328.2,1328.1,9.46379317]
[1673356505405,2.2576251,1328.2,1328.1,9.46379317]
[1673356505543,2.25761935,1328.2,1328.1,9.46379317]
[1673356505753,2.25761967,1328.2,1328.1,9.46379317]
[1673356505971,2.25761974,1328.2,1328.1,9.46379317]
[1673356506284,1.12872387,1328.2,1328.1,9.46379317]
[1673356506494,2.25761992,1328.2,1328.1,9.46379317]
[1673356506705,1.12872387,1328.2,1328.1,9.46379317]
[1673356506955,2.25769708,1328.2,1328.1,9.46379317]
[1673356507168,2.2576927,1328.2,1328.1,9.46379317]
[1673356507393,1.12872387,1328.2,1328.1,9.46379317]
[1673356507904,2.25768033,1328.2,1328.1,9.46379317]
[1673356508116,2.25768024,1328.2,1328.1,9.46379317]
[1673356508330,1.12872387,1328.2,1328.1,9.46379317]
[1673356508547,2.25768001,1328.2,1328.1,9.46379317]
[1673356508849,2.2576803,1328.2,1328.1,9.46379317]
[1673356509013,1.12872387,1328.2,1328.1,9.46379317]
[1673356509647,2.2576791,1328.2,1328.1,9.46379317]
[1673356509917,1.12872387,1328.2,1328.1,9.46379317]
[1673356510292,2.25769154,1328.2,1328.1,9.46379317]
[1673356510642,2.25769165,1328.2,1328.1,9.46379317]
[1673356510851,1.12872387,1328.2,1328.1,9.46379317]
[1673356511095,2.25767914,1328.2,1328.1,9.46379317]
[1673356511384,1.12872387,1328.2,1328.1,9.46379317]
[1673356512294,3.95085165,1328.2,1328.1,9.46379317]
[1673356512639,2.25770445,1328.2,1328.1,16.99334317]
[1673356512799,1.12872387,1328.2,1328.1,16.99334317]
[1673356513219,2.25767153,1328.2,1328.1,16.99334317]
[1673356513424,2.25767169,1328.2,1328.1,16.99334317]
[1673356513693,1.12872387,1328.2,1328.1,16.99334317]
[1673356513880,2.25767709,1328.2,1328.1,1.93424317]
[1673356514095,4.46572325,1328.2,1328.0,10.46706015]
[1673356514301,3.95114837,1328.2,1328.1,1.86836781]
[1673356514515,3.95114837,1328.2,1328.0,16.29118015]
[1673356515044,3.95114837,1328.2,1328.0,23.82130015]
[1673356515544,3.95114837,1328.2,1328.1,1.86836285]
[1673356515756,1.12872387,1328.2,1328.1,9.39791285]
[1673356515964,2.25761275,1328.2,1328.1,9.46391285]
[1673356516302,2.25761275,1328.2,1328.1,16.99346285]
[1673356516303,2.25760087,1328.2,1328.1,16.99346285]
[1673356516478,2.25760073,1328.2,1328.1,9.46391285]
[1673356516688,1.12872387,1328.2,1328.1,9.46391285]
[1673356517009,1.12872387,1328.2,1328.1,1.93436285]
[1673356517249,3.95091379,1328.2,1328.1,1.86836285]
[1673356517483,3.95091388,1328.2,1328.1,1.86836285]
[1673356517636,1.12872387,1328.2,1328.1,1.86836285]
[1673356517863,2.25759389,1328.2,1328.1,1.86836285]
[1673356518228,2.25757087,1328.2,1328.1,1.86836285]
[1673356518435,1.12872387,1328.2,1328.1,1.86836285]
[1673356518595,2.25757608,1328.2,1328.1,1.86836285]
[1673356518808,1.12872387,1328.2,1328.1,1.86836285]
[1673356519015,2.25756,1328.2,1328.1,1.86836285]
[1673356519275,2.25757874,1328.2,1328.1,1.86836285]
[1673356519464,1.12872387,1328.2,1328.1,1.86836285]
[1673356519856,2.25758159,1328.2,1328.1,1.86836285]
[1673356520067,1.12872387,1328.2,1328.1,1.86836285]
[1673356520697,2.257579,1328.2,1328.1,1.86836285]
[1673356521020,2.25757962,1328.2,1328.1,1.86836285]
[1673356521236,1.12872387,1328.2,1328.1,1.86836285]
[1673356521560,2.25758673,1328.2,1328.1,16.92746285]
[1673356521749,1.12872387,1328.2,1328.1,16.99346285]
[1673356521959,2.25759699,1328.2,1328.1,16.99346285]
[1673356522185,1.12872387,1328.2,1328.1,16.99346285]
[1673356523113,2.25760667,1328.2,1328.1,16.99346285]
[1673356523323,1.12872387,1328.2,1328.1,16.99346285]
[1673356523565,1.12872387,1328.2,1328.1,24.52301285]
[1673356523796,2.25762397,1328.2,1328.1,24.52301285]
[1673356523954,2.25762403,1328.2,1328.1,24.52301285]
[1673356524170,3.38652425,1328.2,1328.1,24.52301285]
[1673356524485,3.38652107,1328.2,1328.1,24.52301285]
[1673356524697,2.25762403,1328.2,1328.1,24.52301285]
[1673356524909,3.38651338,1328.2,1328.1,24.52301285]
[1673356525110,2.25762403,1328.2,1328.1,24.52301285]
[1673356525794,2.25762403,1328.2,1328.1,25.64658083]
[1673356526629,2.25762403,1328.2,1328.1,24.52301285]
[1673356527053,3.38659258,1328.2,1328.1,24.52301285]
[1673356527267,3.38659258,1328.2,1328.1,25.64658083]
[1673356527268,2.25762403,1328.2,1328.1,25.64658083]
[1673356527645,3.3865731,1328.2,1328.1,25.64658083]
[1673356527979,2.25762403,1328.2,1328.1,25.64658083]
[1673356528382,2.25762403,1328.2,1328.1,24.52301285]
[1673356528790,3.38658467,1328.2,1328.1,24.52301285]
[1673356529109,3.38658223,1328.2,1328.1,25.64658083]
[1673356529319,2.25762403,1328.2,1328.1,25.64658083]
[1673356530077,3.38658037,1328.2,1328.1,24.52301285]
[1673356530361,3.38658037,1328.2,1328.1,25.64658083]
[1673356530362,2.25762403,1328.2,1328.1,25.64658083]
[1673356530505,3.38657503,1328.2,1328.1,25.64658083]
[1673356530697,3.38658285,1328.2,1328.1,24.52301285]
[1673356530911,2.25762403,1328.2,1328.1,24.52301285]
[1673356531310,3.38665012,1328.2,1328.1,24.52301285]